bitfinex-derivatives/quotes_ETHF0:USTF0_20241024
["timestamp","ask_amount","ask_price","bid_price","bid_amount"]
[1729787413284,2.05860616,2524.2,2524.1,0.39643]
[1729787413583,2.05860616,2524.3,2524.1,7.49111264]
[1729787413783,2.57217449,2524.4,2524.2,4.0855602]
[1729787413784,2.05860616,2524.4,2524.2,4.0855602]
[1729787414085,2.57217449,2524.5,2524.2,4.35802]
[1729787414086,2.05860616,2524.3,2524.2,4.35802]
[1729787414286,2.05860616,2524.3,2524.2,0.39642]
[1729787414583,2.05860616,2524.3,2524.2,4.35802]
[1729787415081,2.05860616,2524.3,2524.2,7.14380049]
[1729787415875,2.57217449,2524.4,2524.2,0.39642]
[1729787416078,2.57217449,2524.3,2524.2,0.39642]
[1729787416386,2.57273654,2524.3,2524.2,0.39642]
[1729787416686,2.57273654,2524.3,2524.2,3.18220049]
[1729787417382,2.57273654,2524.3,2524.2,7.14380049]
[1729787417587,2.57273654,2524.4,2524.3,0.3964]
[1729787418284,2.57273654,2524.4,2524.3,4.358]
[1729787418485,2.57273654,2524.4,2524.3,0.3964]
[1729787418688,2.57273654,2524.5,2524.4,0.39639]
[1729787418885,2.57273654,2524.5,2524.4,3.18217049]
[1729787419478,2.57273654,2524.5,2524.4,7.14377049]
[1729787420787,2.96910654,2524.5,2524.4,0.39639]
[1729787420981,0.39638,2524.5,2524.4,0.39638]
[1729787421497,0.39638,2524.5,2524.4,0.39639]
[1729787421785,3.07139085,2524.6,2524.2,2.78578049]
[1729787421985,2.57296707,2524.3,2524.2,3.18220049]
[1729787422288,0.39639,2524.4,2524.3,0.3964]
[1729787422581,0.4245,2524.5,2524.4,0.39639]
[1729787423286,4.78248,2524.5,2524.4,0.39639]
[1729787423879,4.3861,2524.5,2524.2,2.78578049]
[1729787424074,4.3861,2524.5,2524.2,3.18220049]
[1729787424075,2.57529313,2524.3,2524.2,3.18220049]
[1729787424286,2.57529313,2524.3,2524.2,0.39642]
[1729787424484,4.83,2524.3,2523.8,5.99358049]
[1729787424688,4.83,2524.3,2523.8,0.39648]
[1729787424689,2.05988336,2523.9,2523.8,0.39648]
[1729787424878,2.9713342,2523.9,2523.7,0.39648]
[1729787425086,2.9713342,2523.9,2523.4,6.42978049]
[1729787425087,3.4432542,2523.8,2523.4,6.42978049]
[1729787425282,1.54473938,2523.5,2523.4,0.83274]
[1729787425479,1.54473938,2523.5,2523.4,4.36245203]
[1729787425688,1.54473938,2523.5,2523.4,8.52402871]
[1729787426083,2.05965251,2523.7,2523.4,8.12748871]
[1729787426290,1.54466084,2523.5,2523.4,3.61852049]
[1729787426479,1.54466084,2523.5,2523.4,4.36246301]
[1729787426788,1.54466084,2523.6,2523.5,0.39653]
[1729787426997,1.54466084,2523.6,2523.5,3.92625301]
[1729787427186,1.54466084,2523.6,2523.5,7.88865301]
[1729787427383,2.05965251,2523.8,2523.7,0.3965]
[1729787427582,2.5748542,2524.1,2523.8,0.39648]
[1729787427789,2.5748542,2524.2,2524.1,0.39643]
[1729787427993,2.5748542,2524.4,2524.1,2.90973925]
[1729787428193,2.5748542,2524.4,2524.3,3.18218049]
[1729787431591,2.9712442,2524.4,2524.3,0.3964]
[1729787432095,0.39641,2524.3,2524.2,0.39641]
[1729787432292,0.39641,2524.3,2523.9,2.59317]
[1729787432293,0.39641,2524.3,2523.9,1.602]
[1729787432493,0.4433,2524.2,2524.1,0.39643]
[1729787433398,0.4433,2524.2,2524.0,3.18222049]
[1729787433596,0.4433,2524.2,2523.7,2.78578049]
[1729787433900,3.60425,2524.0,2523.9,0.39646]
[1729787434397,7.1702,2524.0,2523.6,2.59328]
[1729787434594,0.39648,2523.8,2523.7,0.39649]
[1729787434795,0.8381,2523.9,2523.8,0.39648]
[1729787435197,0.4062,2523.9,2523.8,0.39648]
[1729787435395,0.4319,2524.3,2524.2,0.39642]
[1729787435593,1.2467,2524.3,2524.2,0.39642]
[1729787435892,4.8119,2524.3,2523.8,0.99121]
[1729787436099,0.8503,2524.3,2523.8,0.99121]
[1729787436294,0.8503,2524.3,2524.2,0.39642]
[1729787438594,0.4184,2524.3,2524.2,0.39642]
[1729787439102,3.6345,2524.5,2524.2,3.18220049]
[1729787439300,3.2078,2524.5,2524.4,0.39639]
[1729787439496,4.47301191,2524.6,2524.2,2.78578049]
[1729787439702,4.86937191,2524.6,2524.5,0.39637]
[1729787440592,0.39638,2524.5,2524.4,0.39638]
[1729787440792,4.86937191,2524.6,2524.5,0.39637]
[1729787441198,8.83017191,2524.6,2524.5,0.39637]
[1729787441497,0.39638,2524.5,2524.4,0.39637]
[1729787441696,0.39638,2524.5,2524.2,0.3964]
[1729787441697,0.39641,2524.3,2524.2,0.3964]
[1729787442002,0.3964,2524.4,2524.3,0.39639]
[1729787442604,3.2078,2524.5,2523.8,4.38778049]
[1729787442793,3.2078,2524.5,2524.4,0.39639]
[1729787443905,7.56577,2524.5,2524.4,0.39639]
[1729787444091,0.39641,2524.4,2524.3,0.39639]
[1729787444709,4.35801,2524.4,2524.3,0.39639]
[1729787445100,6.67556085,2524.5,2524.4,0.39639]
[1729787445405,3.2078,2524.5,2524.4,0.39639]
[1729787445598,6.67556085,2524.5,2524.4,0.39639]
[1729787445902,3.60417,2524.5,2524.4,0.39639]
[1729787446510,6.67556085,2524.5,2524.4,0.39639]
[1729787446706,7.56577,2524.5,2524.4,0.39639]
[1729787446999,10.63717085,2524.5,2524.4,0.39639]
[1729787448396,10.24079085,2524.5,2523.9,2.59314]
[1729787448598,2.57339754,2524.1,2523.9,2.59314]
[1729787448798,2.57339754,2524.1,2524.0,0.52042004]
[1729787449095,2.57339754,2524.1,2524.0,0.52041966]
[1729787449304,2.57339754,2524.1,2524.0,3.30619875]
[1729787449501,3.07139085,2524.4,2524.1,0.39643]
[1729787449809,6.27919085,2524.5,2524.1,0.83253]
[1729787450009,3.46779085,2524.4,2524.3,0.39639]
[1729787450312,3.46779085,2524.4,2524.1,0.39642]
[1729787450313,0.39644,2524.2,2524.1,0.39642]
[1729787450600,0.39644,2524.2,2524.0,0.39643]
[1729787450601,0.39645,2524.1,2524.0,0.39643]
[1729787450806,1.24325,2524.1,2524.0,0.39643]
[1729787452103,0.8468,2524.1,2524.0,0.39643]
[1729787452799,6.29724349,2524.2,2524.1,0.39643]
[1729787453003,10.65526349,2524.2,2524.1,0.39643]
[1729787454614,0.39646,2524.1,2524.0,0.39643]
[1729787454916,3.48606471,2524.1,2524.0,0.39643]
[1729787455106,4.35805,2524.1,2524.0,0.39643]
[1729787455307,7.44756427,2524.1,2524.0,0.39643]
[1729787455609,3.08951427,2524.1,2524.0,0.39643]
[1729787456307,3.08951427,2524.2,2524.1,0.39643]
[1729787456501,1.2852,2524.4,2524.2,0.39642]
[1729787456710,3.60662141,2524.3,2524.2,0.39642]
[1729787456906,4.00302141,2524.3,2524.2,0.39642]
[1729787457613,0.3964,2524.3,2524.2,0.39642]
[1729787457907,3.6042,2524.3,2524.2,0.39642]
[1729787458609,3.6042,2524.3,2524.1,0.39642]
[1729787458610,0.39643,2524.2,2524.1,0.39642]
[1729787458817,4.0036739,2524.2,2524.1,0.39642]
[1729787459010,3.6072439,2524.2,2523.8,1.2892]
[1729787459316,3.48838319,2524.0,2523.9,0.39644]
[1729787459701,0.39648,2523.9,2523.8,0.39646]
[1729787460013,3.91330319,2523.9,2523.8,0.52044917]
[1729787460210,3.91328319,2523.9,2523.8,0.52044917]
[1729787460802,3.51682319,2523.9,2523.8,0.52044917]
[1729787461013,0.4249,2523.9,2523.8,0.52044917]
[1729787461518,4.33948319,2524.0,2523.9,0.39646]
[1729787461719,3.09192319,2524.1,2523.9,2.90975845]
[1729787462014,3.09192319,2524.1,2524.0,1.23495]
[1729787462208,3.09192319,2524.1,2524.0,1.35892108]
[1729787462411,3.09192319,2524.1,2524.0,1.79642108]
[1729787462609,3.09192319,2524.2,2524.1,0.39643]
[1729787463021,3.09192319,2524.2,2524.1,0.52039939]
[1729787463713,3.6072439,2524.4,2524.1,0.12396939]
[1729787463714,3.09192319,2524.3,2524.1,0.12396939]
[1729787464015,4.0036339,2524.4,2524.0,2.26711]
[1729787464206,3.09230577,2524.2,2524.1,0.5203974]
[1729787464408,3.48872577,2524.2,2524.1,0.5203974]
[1729787464609,3.48872577,2524.2,2523.7,5.99358049]
[1729787464610,3.9616,2524.2,2523.7,3.2078]
[1729787464908,3.9616,2524.2,2523.8,0.74387109]
[1729787464909,3.09253192,2524.0,2523.8,0.74387109]
[1729787465107,3.48898192,2524.0,2523.9,0.52043233]
[1729787465817,3.09253192,2524.0,2523.9,0.52043233]
[1729787466315,0.39645,2524.0,2523.9,0.5204457]
[1729787466510,0.39645,2524.0,2523.9,0.39646]
[1729787466511,3.60425,2524.0,2523.9,0.39646]
[1729787467110,3.60425,2524.0,2523.9,0.52044667]
[1729787467317,3.60425,2524.0,2523.9,0.39646]
[1729787467510,3.60425,2524.0,2523.9,0.52044696]
[1729787467706,3.60425,2524.0,2523.9,0.12398696]
[1729787468014,10.7774439,2524.0,2523.3,5.99358049]
[1729787468215,2.57811553,2523.5,2523.4,3.18346159]
[1729787468414,3.09373864,2523.7,2523.4,3.58000159]
[1729787468615,3.09373864,2523.7,2523.5,5.71138067]
[1729787468616,3.2078,2523.7,2523.5,5.71138067]
[1729787468818,6.30153864,2523.7,2523.6,1.14045676]
[1729787469024,6.72953864,2523.7,2523.6,1.14045676]
[1729787469719,6.72953864,2523.7,2523.6,0.39651]
[1729787469919,6.72953864,2523.7,2523.6,1.14047638]
[1729787470322,3.6358,2523.7,2523.6,1.14047638]
[1729787470618,0.428,2523.7,2523.6,1.14047638]
[1729787470825,3.96093864,2523.7,2523.6,1.14047638]
[1729787471119,0.8672,2523.7,2523.6,1.1404733]
[1729787471620,3.09373864,2523.8,2523.7,0.3965]
[1729787471820,3.09373864,2523.9,2523.8,0.39648]
[1729787472122,3.09373864,2523.9,2523.8,0.52046628]
[1729787472318,3.09373864,2524.0,2523.9,0.39646]
[1729787472526,3.09373864,2524.1,2524.0,0.39645]
[1729787472719,0.4204,2524.2,2524.1,0.39643]
[1729787472720,3.09373864,2524.2,2524.1,0.39643]
[1729787473621,4.4996,2524.4,2524.3,0.3964]
[1729787473622,6.30153864,2524.4,2524.3,0.3964]
[1729787473922,6.30153864,2524.4,2524.3,0.5203632]
[1729787474721,6.69792864,2524.4,2524.3,0.3964]
[1729787475117,11.2544988,2524.4,2523.8,4.4855]
[1729787475318,3.49050388,2524.1,2523.9,0.74385092]
[1729787475529,3.49050388,2524.1,2524.0,0.52043102]
[1729787475929,6.30185388,2524.1,2524.0,0.52042829]
[1729787476128,6.30185388,2524.1,2524.0,0.52042539]
[1729787476743,6.30185388,2524.1,2524.0,1.14030442]
[1729787477346,6.30185388,2524.1,2524.0,1.14029588]
[1729787477834,6.30185388,2524.1,2524.0,1.14029774]
[1729787478037,6.30185388,2524.1,2524.0,1.14029604]
[1729787478245,6.30185388,2524.1,2524.0,1.14029194]
[1729787478739,6.30185388,2524.1,2524.0,1.14028697]
[1729787479243,3.09405388,2524.1,2524.0,1.14028697]
[1729787479842,3.09405388,2524.1,2524.0,0.52042431]
[1729787480340,3.49048388,2524.1,2524.0,1.14030142]
[1729787480539,4.0036739,2524.1,2524.0,0.39645]
[1729787480734,3.6072439,2524.1,2524.0,0.39645]
[1729787481430,6.8150439,2524.2,2524.1,0.39643]
[1729787482341,0.8327,2524.3,2524.2,0.39642]
[1729787482532,4.84206719,2524.3,2524.2,0.39642]
[1729787482842,4.44566719,2524.3,2524.2,0.39642]
[1729787483435,0.8327,2524.3,2524.2,0.39642]
[1729787483746,0.8327,2524.3,2524.2,0.52038573]
[1729787484546,3.92968494,2524.3,2524.2,1.14020947]
[1729787484742,3.92968494,2524.3,2524.2,0.52038573]
[1729787485341,3.92968494,2524.3,2524.2,1.14020664]
[1729787486544,3.51088494,2524.3,2524.2,1.14020664]
[1729787486846,3.51088494,2524.3,2524.2,1.57420664]
[1729787487051,3.51088494,2524.3,2524.2,1.14020664]
[1729787488941,3.51088494,2524.3,2524.2,0.52038328]
[1729787489352,3.51088494,2524.3,2524.2,1.14019968]
[1729787490341,7.86888494,2524.3,2524.2,1.14019968]
[1729787490651,4.7719,2524.3,2524.2,0.52038328]
[1729787490944,0.39644,2524.1,2524.0,0.39643]
[1729787491148,0.39644,2524.1,2524.0,1.14029334]
[1729787491354,4.35804,2524.1,2524.0,1.14029334]
[1729787491646,7.45605623,2524.1,2524.0,1.14029334]
[1729787491856,7.05961623,2524.1,2524.0,1.14029334]
[1729787492561,7.45604623,2524.1,2524.0,1.14029334]
[1729787492943,7.45604623,2524.1,2524.0,1.14030163]
[1729787493145,3.09801623,2524.1,2524.0,1.14030163]
[1729787493448,7.05961623,2524.1,2524.0,1.14030163]
[1729787494153,3.09801623,2524.1,2524.0,1.14030163]
[1729787494454,3.09801623,2524.1,2524.0,1.33865734]
[1729787494644,6.30581623,2524.2,2524.1,0.39643]
[1729787494844,6.30581623,2524.2,2524.1,1.14030163]
[1729787495045,3.09801623,2524.2,2524.1,1.14030163]
[1729787496256,3.09801623,2524.2,2524.1,1.33864471]
[1729787496949,9.84539672,2524.2,2523.7,0.39649]
[1729787497141,9.84539672,2524.2,2523.8,1.01640097]
[1729787497142,6.30470127,2523.9,2523.8,1.01640097]
[1729787497346,3.2078,2523.9,2523.8,0.39648]
[1729787497548,4.02596719,2524.0,2523.6,1.40078]
[1729787497746,3.09671888,2523.8,2523.7,0.3965]
[1729787498361,3.09671888,2523.8,2523.6,0.39651]
[1729787498553,0.39651,2523.6,2523.5,0.39652]
[1729787498954,0.8647,2523.7,2523.2,5.44422049]
[1729787499253,0.413,2523.5,2523.4,0.39654]
[1729787499448,0.413,2523.5,2523.4,1.38853982]
[1729787499752,3.09671888,2523.8,2523.7,0.3965]
[1729787499956,3.2078,2523.9,2523.5,2.29601]
[1729787500157,3.2078,2523.9,2523.8,0.39648]
[1729787501951,3.2078,2523.9,2523.5,1.3047]
[1729787502259,3.60428,2523.9,2523.8,0.39648]
[1729787502659,3.60428,2523.9,2523.5,2.29602]
[1729787502660,0.39649,2523.8,2523.7,0.39648]
[1729787503056,3.2078,2523.9,2523.5,1.3047]
[1729787503266,0.39651,2523.7,2523.6,0.3965]
[1729787503457,3.2078,2523.9,2523.4,0.99136]
[1729787503657,0.8782,2523.6,2523.5,0.39653]
[1729787504264,1.3015,2523.6,2523.5,0.39653]
[1729787504952,1.69801,2523.6,2523.5,0.39653]
[1729787505165,5.2639,2523.6,2523.2,0.8513]
[1729787505359,2.78578049,2523.5,2523.0,0.4328]
[1729787505661,3.18232049,2523.5,2523.4,0.39654]
[1729787505857,0.39654,2523.5,2523.4,0.39654]
[1729787506159,0.39654,2523.4,2523.3,0.39656]
[1729787506363,4.5093,2523.6,2523.0,0.99151]
[1729787506557,0.39655,2523.4,2523.3,0.39655]
[1729787506752,4.5093,2523.6,2523.0,2.78578049]
[1729787506958,4.5093,2523.6,2523.5,0.39653]
[1729787507157,4.0638,2523.6,2523.5,0.39653]
[1729787507661,3.61116233,2523.7,2523.6,0.39651]
[1729787509665,0.8252,2524.0,2523.6,7.14469049]
[1729787509862,8.32678475,2524.4,2523.6,7.14469049]
[1729787509863,0.4117,2524.2,2524.1,0.39643]
[1729787510065,0.8324,2524.2,2524.1,0.39643]
[1729787510367,0.8324,2524.2,2523.8,0.441]
[1729787510567,0.8324,2524.2,2523.6,2.78578049]
[1729787510568,3.0929903,2524.1,2523.6,2.78578049]
[1729787510766,3.0929903,2524.1,2523.9,0.39646]
[1729787510767,0.39646,2524.0,2523.9,0.39646]
[1729787511064,3.0929903,2524.1,2524.0,0.39645]
[1729787511065,3.4894303,2524.1,2524.0,0.39645]
[1729787511270,3.0929903,2524.1,2524.0,0.39645]
[1729787511464,3.4894203,2524.1,2524.0,0.39645]
[1729787511768,3.0929903,2524.1,2524.0,0.39645]
[1729787511967,3.4894203,2524.1,2524.0,0.39645]
[1729787512567,3.0929903,2524.1,2524.0,0.39645]
[1729787518269,0.8324,2524.2,2524.1,0.39643]
[1729787518270,3.9253903,2524.2,2524.1,0.39643]
[1729787518572,1.22882,2524.2,2524.1,0.39643]
[1729787518770,4.32207192,2524.2,2524.1,0.39643]
[1729787519272,3.92565192,2524.2,2524.1,0.39643]
[1729787519871,3.51395192,2524.2,2524.1,0.39643]
[1729787521979,3.91037192,2524.2,2524.1,0.39643]
[1729787522569,3.51395192,2524.2,2524.1,0.39643]
[1729787522866,3.91037192,2524.2,2524.1,0.39643]
[1729787523072,3.51395192,2524.2,2524.1,0.39643]
[1729787523472,3.51479895,2524.2,2524.1,0.39643]
[1729787524881,3.09409895,2524.3,2524.2,0.39642]
[1729787525172,7.53599895,2524.4,2524.0,1.86861]
[1729787525376,2.57851651,2524.1,2524.0,1.27395]
[1729787525576,2.57851651,2524.1,2524.0,2.01775441]
[1729787525766,2.57851651,2524.1,2524.0,5.97935441]
[1729787526970,3.49050895,2524.3,2524.2,0.39641]
[1729787527569,3.09409895,2524.3,2524.2,0.39641]
[1729787527773,3.49049895,2524.3,2524.2,0.39641]
[1729787528385,3.09409895,2524.3,2524.2,0.39641]
[1729787529476,3.49049895,2524.3,2524.2,0.39641]
[1729787529681,3.49049895,2524.3,2524.0,0.39644]
[1729787529682,0.39645,2524.1,2524.0,0.39644]
[1729787530275,0.39646,2524.0,2523.9,0.39645]
[1729787530576,0.39646,2524.0,2523.9,0.52042276]
[1729787530577,0.8479,2524.0,2523.9,0.52042276]
[1729787530875,0.39648,2523.9,2523.8,0.39646]
[1729787531273,11.03890545,2524.1,2523.8,7.1702]
[1729787531274,1.38853496,2524.1,2523.8,7.1702]
[1729787531474,1.03141538,2524.0,2523.9,9.11438546]
[1729787531676,1.54701944,2524.3,2524.0,0.4154]
[1729787531869,0.68171286,2524.3,2524.2,6.39000049]
[1729787532076,2.57841527,2524.8,2524.2,7.92708233]
[1729787532273,2.57841527,2524.8,2524.7,0.39634]
[1729787532580,1.2936,2524.9,2524.3,3.20488049]
[1729787532781,2.57758863,2524.8,2524.7,0.39634]
[1729787533274,2.57758863,2524.8,2524.7,3.18212049]
[1729787533476,3.87118863,2524.9,2524.8,0.39632]
[1729787533676,3.46158863,2524.9,2524.8,0.39632]
[1729787534479,0.4457,2524.9,2524.8,0.39632]
[1729787535686,0.4457,2524.9,2524.8,0.83862]
[1729787537786,2.57758863,2525.2,2524.8,0.83862]
[1729787537980,0.4067,2525.1,2525.0,0.39629]
[1729787538489,0.4088,2525.3,2525.2,0.39626]
[1729787538792,0.8155,2525.3,2525.2,0.39626]
[1729787539089,2.57758863,2525.6,2525.5,0.39621]
[1729787539388,4.0617,2525.7,2525.6,0.3962]
[1729787540594,3.00238863,2525.9,2525.5,2.78578049]
[1729787540595,0.4248,2525.9,2525.5,2.78578049]
[1729787540795,0.4248,2525.9,2525.8,3.18195049]
[1729787541192,0.8798,2526.2,2526.1,0.39612]
[1729787541389,0.8798,2526.2,2526.1,3.18190049]
[1729787542301,0.8798,2526.2,2525.7,4.19826]
[1729787542302,0.8798,2526.2,2526.0,0.39613]
[1729787542492,0.3962,2525.6,2525.2,3.2078]
[1729787542802,0.3962,2525.6,2525.4,0.39623]
[1729787542803,1.2532,2525.5,2525.4,0.39623]
[1729787543006,3.8206408,2525.5,2525.3,0.39623]
[1729787543195,3.8206408,2525.5,2525.1,2.78578049]
[1729787543590,3.8206408,2525.5,2525.4,0.39623]
[1729787543795,4.2168608,2525.5,2525.3,0.39624]
[1729787544100,3.8206408,2525.5,2525.4,0.39623]
[1729787544489,1.2532,2525.5,2525.4,0.39623]
[1729787545200,0.4147,2525.5,2525.4,4.35623]
[1729787545497,5.7752408,2525.8,2525.7,0.39618]
[1729787545901,2.5674408,2525.8,2525.7,0.39618]
[1729787546099,3.4297408,2525.9,2525.8,0.39617]
[1729787546397,0.8623,2525.9,2525.8,0.39617]
[1729787546903,3.2078,2526.1,2525.8,6.74498049]
[1729787546904,5.7752408,2526.1,2525.8,6.74498049]
[1729787547203,3.2078,2526.1,2526.0,0.39614]
[1729787549397,7.1662,2526.1,2525.4,3.61958049]
[1729787549601,7.1662,2526.1,2525.9,0.39615]
[1729787549602,0.39614,2526.0,2525.9,0.39615]
[1729787549798,3.2078,2526.1,2525.9,0.39615]
[1729787550303,3.2078,2526.1,2525.6,2.78578049]
[1729787550304,3.2078,2526.1,2526.0,0.39614]
[1729787550700,4.47651,2526.2,2526.1,0.39612]
[1729787550904,4.0804,2526.2,2526.1,0.39612]
[1729787551109,0.8726,2526.2,2526.1,0.39612]
[1729787552912,0.8726,2526.2,2526.0,0.39613]
[1729787552913,0.39613,2526.1,2526.0,0.39613]
[1729787553098,0.39612,2526.1,2525.9,0.39614]
[1729787553407,0.39612,2526.1,2526.0,0.39614]
[1729787553602,0.8726,2526.2,2525.5,2.78578049]
[1729787553798,5.0707,2526.2,2525.5,2.78578049]
[1729787553997,0.39617,2525.8,2525.5,2.78578049]
[1729787554199,1.2707,2525.7,2525.6,0.39618]
[1729787556095,0.39613,2526.1,2526.0,0.39614]
[1729787556295,1.64823,2526.1,2526.0,0.39614]
[1729787556701,0.39614,2526.0,2525.9,0.39614]
[1729787556902,1.2521,2526.1,2525.8,2.78578049]
[1729787557208,0.39615,2525.9,2525.8,0.39616]
[1729787557409,1.2521,2526.1,2525.7,0.438]
[1729787557602,1.2521,2526.1,2525.6,3.19548049]
[1729787557796,1.2521,2526.1,2525.6,4.18596049]
[1729787558098,1.2521,2526.1,2525.6,3.19548049]
[1729787558304,1.64823,2526.1,2526.0,0.39614]
[1729787558904,1.64823,2526.1,2525.9,0.39614]
[1729787558905,0.39614,2526.0,2525.9,0.39614]
[1729787559209,1.64823,2526.1,2526.0,0.39614]
[1729787559706,1.2521,2526.1,2526.0,0.39614]
[1729787559904,1.2521,2526.1,2526.0,3.18192049]
[1729787560110,3.2078,2526.5,2526.0,3.18192049]
[1729787560309,1.67448,2526.4,2526.3,0.39609]
[1729787560607,1.67447,2526.4,2526.3,0.39609]
[1729787560804,1.2784,2526.4,2526.3,0.39609]
[1729787561008,1.67447,2526.4,2526.3,0.39609]
[1729787561208,1.2784,2526.4,2526.3,0.39609]
[1729787563210,0.39605,2526.6,2526.5,0.39606]
[1729787563509,1.22585,2526.6,2526.5,0.39606]
[1729787564108,0.39607,2526.5,2526.4,0.39606]
[1729787565105,3.9584,2526.5,2526.0,3.2078]
[1729787565413,0.39613,2526.1,2526.0,0.39612]
[1729787566319,0.82683,2526.1,2526.0,0.39612]
[1729787567011,0.39616,2525.9,2525.8,0.39616]
[1729787567906,0.4307,2526.1,2525.9,0.39614]
[1729787567907,0.39614,2526.0,2525.9,0.39614]
[1729787569509,0.4307,2526.1,2525.7,3.77624049]
[1729787569706,0.4307,2526.1,2526.0,0.39614]
[1729787570310,0.8641,2526.2,2526.1,0.39612]
[1729787570519,0.4248,2526.2,2526.1,0.39612]
[1729787570915,3.2078,2526.3,2526.2,0.3961]
[1729787571111,0.39608,2526.4,2526.1,2.78578049]
[1729787571112,0.426,2526.5,2526.1,2.78578049]
[1729787571317,0.426,2526.5,2526.4,0.39607]
[1729787571318,0.82207,2526.5,2526.4,0.39607]
[1729787572118,0.82206,2526.5,2526.4,0.39607]
[1729787573222,0.39608,2526.4,2526.3,0.39607]
[1729787573414,0.426,2526.5,2526.1,3.77608049]
[1729787573415,0.39612,2526.2,2526.1,0.3961]
[1729787573714,0.82207,2526.5,2526.4,0.39607]
[1729787574109,0.426,2526.5,2526.4,0.39607]
[1729787574919,0.39604,2526.7,2526.6,0.39603]
[1729787575112,1.24792,2526.8,2526.7,0.39603]
[1729787575424,0.39604,2526.7,2526.6,0.39603]
[1729787577919,2.90449912,2526.8,2526.5,2.78578049]
[1729787578114,2.90449912,2526.8,2526.5,3.18182049]
[1729787578115,0.39604,2526.6,2526.5,3.18182049]
[1729787578727,2.44862912,2526.7,2526.6,0.39604]
[1729787579917,2.05259912,2526.7,2526.6,0.39604]
[1729787580118,6.6271408,2526.8,2526.5,2.78578049]
[1729787580119,8.57974996,2526.8,2526.5,2.78578049]
[1729787580325,3.61776303,2526.6,2526.5,3.18184049]
[1729787581215,3.61776303,2526.7,2526.5,2.78578049]
[1729787581416,3.10275336,2526.8,2526.6,9.92520098]
[1729787581728,4.12403996,2527.1,2527.0,0.39596]
[1729787581729,0.39597,2527.1,2527.0,0.39596]
[1729787582021,0.39596,2527.2,2527.1,0.39595]
[1729787582816,5.05145893,2527.2,2527.1,0.39595]
[1729787583423,0.39596,2527.2,2527.1,0.39595]
[1729787583623,5.05145893,2527.2,2527.1,0.39595]
[1729787584212,0.39596,2527.2,2527.1,0.39595]
[1729787584418,4.65549893,2527.2,2527.0,2.78578049]
[1729787584721,0.39599,2527.0,2526.9,0.39598]
[1729787585023,4.53503594,2527.0,2526.9,0.39598]
[1729787585217,0.39603,2526.9,2526.8,3.18181049]
[1729787585415,4.54734594,2526.9,2526.8,3.18181049]
[1729787585924,4.54734594,2526.9,2526.8,2.78578049]
[1729787585925,5.38247594,2526.9,2526.8,2.78578049]
[1729787586124,5.38247594,2526.9,2526.6,3.62458049]
[1729787586125,4.98644594,2526.9,2526.6,3.62458049]
[1729787586315,3.62050632,2526.7,2526.6,4.02066049]
[1729787586719,3.62050632,2526.7,2526.6,3.18186049]
[1729787587715,5.38249594,2526.9,2526.7,0.39606]
[1729787587716,0.39606,2526.8,2526.7,0.39606]
[1729787587915,0.8474,2526.9,2526.6,2.78578049]
[1729787588125,1.24345,2526.9,2526.6,2.78578049]
[1729787588428,3.82823919,2526.9,2526.8,0.39605]
[1729787588820,0.8474,2526.9,2526.8,0.39605]
[1729787589020,0.8474,2526.9,2526.8,3.18183049]
[1729787589221,6.23058919,2527.0,2526.9,0.39603]
[1729787589733,6.23058919,2527.0,2525.8,7.6182434]
[1729787589734,0.99009,2526.9,2525.9,3.2078]
[1729787590025,3.2078,2526.2,2525.9,0.4453]
[1729787590219,3.2078,2526.2,2525.8,2.78578049]
[1729787590220,1.65487,2526.1,2526.0,0.39617]
[1729787590425,4.23952267,2526.1,2526.0,0.39617]
[1729787590822,7.80175267,2526.1,2525.8,2.78578049]
[1729787591023,3.84335267,2526.1,2525.8,2.78578049]
[1729787591228,3.84335267,2526.1,2526.0,0.39617]
[1729787591532,2.58465267,2526.1,2526.0,3.18195049]
[1729787591732,3.2078,2526.2,2526.1,0.39616]
[1729787591733,5.79245267,2526.2,2526.1,0.39616]
[1729787592219,5.79245267,2526.2,2526.1,1.20556]
[1729787592631,3.2078,2526.2,2526.1,1.20556]
[1729787593624,2.58465267,2526.3,2526.2,0.39614]
[1729787594619,0.39622,2525.8,2525.4,3.2078]
[1729787594822,0.4119,2525.7,2525.6,0.39624]
[1729787596432,2.58465267,2525.9,2525.8,0.39621]
[1729787596821,2.58465267,2525.9,2525.7,3.23218049]
[1729787596822,5.79245267,2526.0,2525.7,3.23218049]
[1729787597126,5.79245267,2526.0,2525.9,3.18197049]
[1729787597327,3.2078,2526.0,2525.9,0.39619]
[1729787597536,6.18862267,2526.0,2525.9,0.39619]
[1729787597734,3.60397,2526.0,2525.9,0.39619]
[1729787598034,5.79027149,2526.0,2525.9,0.39619]
[1729787598421,2.58247149,2526.0,2525.9,0.39619]
[1729787599824,2.97865149,2526.0,2525.9,0.39619]
[1729787600136,6.18645149,2526.0,2525.9,0.39619]
[1729787600434,3.60398,2526.0,2525.9,0.39619]
[1729787600629,3.2078,2526.0,2525.6,2.78578049]
[1729787600839,3.60403,2525.7,2525.6,0.39623]
[1729787601031,6.1864535,2525.7,2525.6,0.39623]
[1729787601227,6.1864535,2525.7,2525.2,1.83025]
[1729787601228,7.0773235,2525.7,2525.2,0.8395]
[1729787601533,7.0773235,2525.7,2525.1,0.3963]
[1729787601534,0.39628,2525.3,2525.1,0.3963]
[1729787601741,1.2871,2525.2,2525.1,0.3963]
[1729787602427,5.7902235,2525.4,2525.3,0.39628]
[1729787602632,3.2078,2525.4,2525.3,0.39628]
[1729787603331,5.7902235,2525.8,2525.3,6.74578049]
[1729787603529,3.2078,2525.8,2525.7,0.39622]
[1729787604130,3.8661235,2526.0,2525.9,0.39619]
[1729787604828,4.2622935,2526.0,2525.9,0.39619]
[1729787605029,3.8661235,2526.0,2525.9,0.39619]
[1729787606329,4.2622935,2526.0,2525.9,0.39619]
[1729787606641,0.39626,2525.5,2525.4,0.39626]
[1729787606825,3.60406,2525.5,2525.4,0.39626]
[1729787607034,3.2078,2525.5,2525.4,0.39626]
[1729787607330,4.484,2525.5,2525.4,0.39626]
[1729787607733,4.0798,2525.5,2525.4,0.39626]
[1729787610041,4.47605,2525.5,2525.4,0.39626]